fUST/lending_fUST_20250526
["ID","MTS","AMOUNT","RATE_DAILY","PERIOD"]
[362357759,1748214647372,-430.0,0.00019452,2]
[362357761,1748214647382,-430.0,0.00019452,2]
[362357763,1748214647392,-430.0,0.00019452,2]
[362357765,1748214647403,-430.0,0.00019452,2]
[362357767,1748214647412,-430.0,0.00019452,2]
[362357769,1748214647422,-430.0,0.00019452,2]
[362357771,1748214647431,-430.0,0.00019452,2]
[362357773,1748214647441,-430.0,0.00019452,2]
[362357775,1748214647452,-430.0,0.00019452,2]
[362357777,1748214647462,-430.0,0.00019452,2]
[362357779,1748214647472,-230.08207752,0.00019452,2]
[362357781,1748214647482,-430.0,0.00019452,2]
[362357783,1748214647492,-430.0,0.00019452,2]
[362357786,1748214647502,-430.0,0.00019452,2]
[362357788,1748214647512,-430.0,0.00019452,2]
[362357790,1748214647522,-515.6,0.00019452,2]
[362357792,1748214647531,-430.0,0.00019452,2]
[362357794,1748214647542,-430.0,0.00019452,2]
[362357796,1748214647552,-349.58,0.00019452,2]
[362357798,1748214647562,-389.48,0.00019452,2]
[362357800,1748214647572,-430.0,0.00019452,2]
[362357802,1748214647582,-430.0,0.00019452,2]
[362357804,1748214647592,-430.0,0.00019452,2]
[362357806,1748214647602,-430.0,0.00019452,2]
[362357808,1748214647612,-430.0,0.00019452,2]
[362357810,1748214647622,-430.0,0.00019452,2]
[362357812,1748214647631,-430.0,0.00019452,2]
[362357815,1748214647641,-210.0,0.00019452,2]
[362357817,1748214647650,-430.0,0.00019452,2]
[362357819,1748214647662,-430.0,0.00019452,2]
[362357821,1748214647671,-430.0,0.00019452,2]
[362357823,1748214647681,-430.0,0.00019452,2]
[362357825,1748214647691,-430.0,0.00019452,2]
[362357827,1748214647701,-430.0,0.00019452,2]
[362357829,1748214647712,-430.0,0.00019452,2]
[362357831,1748214647722,-430.0,0.00019452,2]
[362357833,1748214647732,-430.0,0.00019452,2]
[362357835,1748214647744,-430.0,0.00019452,2]
[362357837,1748214647754,-430.0,0.00019452,2]
[362357839,1748214647764,-442.02,0.00019452,2]
[362357841,1748214647774,-430.0,0.00019452,2]
[362357843,1748214647784,-430.0,0.00019452,2]
[362357845,1748214647794,-430.0,0.00019452,2]
[362357847,1748214647804,-430.0,0.00019452,2]
[362357849,1748214647814,-430.0,0.00019452,2]
[362357851,1748214647824,-532.16007376,0.00019452,2]
[362357853,1748214647834,-430.0,0.00019452,2]
[362357855,1748214647844,-430.0,0.00019452,2]
[362357857,1748214647855,-430.0,0.00019452,2]
[362357859,1748214647864,-430.0,0.00019452,2]
[362357861,1748214647874,-430.0,0.00019452,2]
[362357864,1748214647884,-430.0,0.00019452,2]
[362357866,1748214647894,-430.0,0.00019452,2]
[362357868,1748214647904,-430.0,0.00019452,2]
[362357870,1748214647913,-430.0,0.00019452,2]
[362357872,1748214647922,-430.0,0.00019452,2]
[362357874,1748214647932,-196.75079417,0.00019452,2]
[362357876,1748214647942,-430.0,0.00019452,2]
[362357878,1748214647952,-430.0,0.00019452,2]
[362357880,1748214647963,-430.0,0.00019452,2]
[362357882,1748214647973,-430.0,0.00019452,2]
[362357884,1748214647984,-430.0,0.00019452,2]
[362357886,1748214647995,-430.0,0.00019452,2]
[362357888,1748214648005,-430.0,0.00019452,2]
[362357890,1748214648015,-430.0,0.00019452,2]
[362357892,1748214648026,-430.0,0.00019452,2]
[362357894,1748214648037,-430.0,0.00019452,2]
[362357896,1748214648047,-430.0,0.00019452,2]
[362357898,1748214648058,-430.0,0.00019452,2]
[362357900,1748214648071,-430.0,0.00019452,2]
[362357902,1748214648081,-430.0,0.00019452,2]
[362357904,1748214648091,-430.0,0.00019452,2]
[362357906,1748214648101,-430.0,0.00019452,2]
[362357908,1748214648111,-430.0,0.00019452,2]
[362357910,1748214648121,-430.0,0.00019452,2]
[362357912,1748214648131,-430.0,0.00019452,2]
[362357914,1748214648142,-344.50975555,0.00019452,2]
[362357916,1748214648152,-456.88235868,0.00019452,2]
[362357918,1748214648162,-430.0,0.00019452,2]
[362357919,1748214648173,-430.0,0.00019452,2]
[362357920,1748214648183,-430.0,0.00019452,2]
[362357921,1748214648194,-519.87792369,0.00019452,2]
[362357922,1748214648204,-430.0,0.00019452,2]
[362357924,1748214648217,-430.0,0.00019452,2]
[362357926,1748214648227,-430.0,0.00019452,2]
[362357928,1748214648237,-430.0,0.00019452,2]
[362357930,1748214648248,-430.0,0.00019452,2]
[362357932,1748214648258,-430.0,0.00019452,2]
[362357934,1748214648269,-430.0,0.00019452,2]
[362357936,1748214648279,-430.0,0.00019452,2]
[362357938,1748214648289,-430.0,0.00019452,2]
[362357940,1748214648299,-389.82535415,0.00019452,2]
[362357942,1748214648309,-430.0,0.00019452,2]
[362357944,1748214648319,-430.0,0.00019452,2]
[362357946,1748214648329,-430.0,0.00019452,2]
[362357948,1748214648339,-430.0,0.00019452,2]
[362357950,1748214648349,-430.0,0.00019452,2]
[362357952,1748214648359,-430.0,0.00019452,2]
[362357955,1748214648370,-430.0,0.00019452,2]
[362357957,1748214648379,-234.00087725,0.00019452,2]
[362357959,1748214648389,-430.0,0.00019452,2]
[362357961,1748214648399,-430.0,0.00019452,2]
[362357963,1748214648409,-430.0,0.00019452,2]
[362357965,1748214648419,-430.0,0.00019452,2]
[362357967,1748214648429,-430.0,0.00019452,2]
[362357969,1748214648439,-430.0,0.00019452,2]
[362357971,1748214648449,-430.0,0.00019452,2]
[362357973,1748214648459,-282.47,0.00019452,2]
[362357975,1748214648472,-430.0,0.00019452,2]
[362357978,1748214648482,-430.0,0.00019452,2]
[362357980,1748214648492,-430.0,0.00019452,2]
[362357982,1748214648502,-430.0,0.00019452,2]
[362357984,1748214648512,-430.0,0.00019452,2]
[362357986,1748214648522,-430.0,0.00019452,2]
[362357988,1748214648532,-430.0,0.00019452,2]
[362357990,1748214648542,-430.0,0.00019452,2]
[362357992,1748214648551,-715.58,0.00019452,2]
[362357994,1748214648561,-268.8,0.00019452,2]
[362357996,1748214648571,-430.0,0.00019452,2]
[362357998,1748214648581,-430.0,0.00019452,2]
[362358000,1748214648591,-430.0,0.00019452,2]
[362358002,1748214648601,-430.0,0.00019452,2]
[362358004,1748214648611,-430.0,0.00019452,2]
[362358006,1748214648622,-430.0,0.00019452,2]
[362358009,1748214648632,-430.0,0.00019452,2]
[362358011,1748214648642,-430.0,0.00019452,2]
[362358013,1748214648652,-430.0,0.00019452,2]
[362358015,1748214648662,-430.0,0.00019452,2]
[362358017,1748214648672,-230.0,0.00019452,2]
[362358019,1748214648681,-430.0,0.00019452,2]
[362358021,1748214648691,-430.0,0.00019452,2]
[362358023,1748214648701,-430.0,0.00019452,2]
[362358025,1748214648713,-445.38,0.00019452,2]
[362358027,1748214648723,-430.0,0.00019452,2]
[362358029,1748214648733,-430.0,0.00019452,2]
[362358031,1748214648743,-365.32,0.00019452,2]
[362358033,1748214648753,-430.0,0.00019452,2]
[362358035,1748214648763,-430.0,0.00019452,2]
[362358037,1748214648773,-430.0,0.00019452,2]
[362358039,1748214648783,-480.5,0.00019452,2]
[362358041,1748214648793,-430.0,0.00019452,2]
[362358043,1748214648803,-515.72,0.00019452,2]
[362358045,1748214648813,-430.0,0.00019452,2]
[362358047,1748214648823,-370.0,0.00019452,2]
[362358049,1748214648833,-370.0,0.00019452,2]
[362358051,1748214648844,-430.0,0.00019452,2]
[362358052,1748214648854,-287.30133394,0.00019452,2]
[362358053,1748214648864,-430.0,0.00019452,2]
[362358054,1748214648875,-430.0,0.00019452,2]
[362358055,1748214648886,-430.0,0.00019452,2]
[362358056,1748214648896,-430.0,0.00019452,2]
[362358057,1748214648906,-490.0,0.00019452,2]
[362358058,1748214648916,-430.0,0.00019452,2]
[362358059,1748214648926,-430.0,0.00019452,2]
[362358060,1748214648936,-563.77,0.00019452,2]
[362358061,1748214648946,-430.0,0.00019452,2]
[362358062,1748214648956,-430.0,0.00019452,2]
[362358063,1748214648967,-430.0,0.00019452,2]
[362358064,1748214648978,-430.0,0.00019452,2]
[362358065,1748214648992,-430.0,0.00019452,2]
[362358066,1748214649003,-430.0,0.00019452,2]
[362358067,1748214649013,-430.0,0.00019452,2]
[362358068,1748214649023,-431.71,0.00019452,2]
[362358069,1748214649034,-430.0,0.00019452,2]
[362358070,1748214649044,-430.0,0.00019452,2]
[362358072,1748214649055,-430.0,0.00019452,2]
[362358074,1748214649066,-430.0,0.00019452,2]
[362358075,1748214649076,-430.0,0.00019452,2]
[362358077,1748214649086,-430.0,0.00019452,2]
[362358079,1748214649097,-430.0,0.00019452,2]
[362358081,1748214649107,-430.0,0.00019452,2]
[362358083,1748214649119,-430.0,0.00019452,2]
[362358085,1748214649130,-470.0,0.00019452,2]
[362358086,1748214649141,-516.59345434,0.00019452,2]
[362358088,1748214649153,-430.0,0.00019452,2]
[362358090,1748214649164,-430.0,0.00019452,2]
[362358092,1748214649175,-210.06,0.00019452,2]
[362358094,1748214649186,-430.0,0.00019452,2]
[362358096,1748214649197,-430.0,0.00019452,2]
[362358097,1748214649208,-430.0,0.00019452,2]
[362358098,1748214649224,-430.0,0.00019452,2]
[362358099,1748214649236,-430.0,0.00019452,2]
[362358100,1748214649249,-430.0,0.00019452,2]
[362358101,1748214649261,-430.0,0.00019452,2]
[362358102,1748214649271,-430.0,0.00019452,2]
[362358103,1748214649282,-430.0,0.00019452,2]
[362358104,1748214649292,-430.0,0.00019452,2]
[362358105,1748214649303,-430.0,0.00019452,2]
[362358107,1748214649314,-293.10280736,0.00019521,2]
[362358109,1748214649324,-894.64583333,0.00019595,2]
[362358110,1748214649335,-160.0,0.00019595,2]
[362358112,1748214649345,-423.00916439,0.00019595,2]
[362358114,1748214649355,-229.13142565,0.00019595,2]
[362358116,1748214649365,-160.0,0.00019595,2]
[362358118,1748214649375,-212.55626673,0.00019595,2]
[362358120,1748214649386,-160.0,0.00019595,2]
[362358123,1748214649396,-160.0,0.00019595,2]
[362358124,1748214649406,-12652.24558203,0.00019596,2]
[362358127,1748214649416,-222.38,0.00019726,2]
[362358128,1748214649426,-450.0,0.00019726,2]
[362358130,1748214649436,-450.0,0.00019726,2]
[362358131,1748214649446,-430.0,0.00019726,2]
[362358133,1748214649456,-338.16,0.00019726,2]
[362358134,1748214649471,-443.54,0.00019726,2]
[362358135,1748214649481,-224.94,0.00019726,2]
[362358136,1748214649492,-430.0,0.00019726,2]
[362358137,1748214649502,-422.24,0.00019726,2]
[362358138,1748214649511,-430.0,0.00019726,2]
[362358139,1748214649521,-430.0,0.00019726,2]
[362358140,1748214649531,-546.69,0.00019726,2]
[362358141,1748214649541,-175.76,0.00019726,2]
[362358142,1748214649552,-430.0,0.00019726,2]
[362358143,1748214649566,-430.0,0.00019726,2]
[362358144,1748214649576,-430.0,0.00019726,2]
[362358145,1748214649586,-430.0,0.00019726,2]
[362358146,1748214649595,-430.0,0.00019726,2]
[362358147,1748214649606,-176.28,0.00019726,2]
[362358148,1748214649616,-430.0,0.00019726,2]
[362358149,1748214649627,-430.0,0.00019726,2]
[362358150,1748214649636,-430.0,0.00019726,2]
[362358151,1748214649646,-526.36,0.00019726,2]
[362358152,1748214649656,-430.0,0.00019726,2]
[362358153,1748214649667,-430.0,0.00019726,2]
[362358154,1748214649678,-151.17,0.00019726,2]
[362358155,1748214649688,-430.0,0.00019726,2]
[362358156,1748214649698,-430.0,0.00019726,2]
[362358157,1748214649832,-430.0,0.00019726,2]
[362358158,1748214649844,-430.0,0.00019726,2]
[362358159,1748214649857,-715.58,0.00019726,2]
[362358160,1748214649869,-489.58,0.00019726,2]
[362358161,1748214649879,-520.58,0.00019726,2]
[362358162,1748214649889,-430.0,0.00019726,2]
[362358163,1748214649899,-430.0,0.00019726,2]
[362358164,1748214649908,-430.0,0.00019726,2]
[362358165,1748214649919,-430.0,0.00019726,2]
[362358166,1748214649930,-430.0,0.00019726,2]
[362358167,1748214649941,-430.0,0.00019726,2]
[362358168,1748214649952,-430.0,0.00019726,2]
[362358169,1748214649963,-430.0,0.00019726,2]
[362358170,1748214649972,-563.77,0.00019726,2]
[362358171,1748214649983,-430.0,0.00019726,2]
[362358172,1748214649999,-430.0,0.00019726,2]
[362358173,1748214650009,-430.0,0.00019726,2]
[362358174,1748214650018,-430.0,0.00019726,2]
[362358175,1748214650028,-431.71,0.00019726,2]
[362358176,1748214650038,-430.0,0.00019726,2]
[362358177,1748214650048,-188.0,0.00019726,2]
[362358178,1748214650058,-430.0,0.00019726,2]
[362358179,1748214650068,-430.0,0.00019726,2]
[362358180,1748214650078,-430.0,0.00019726,2]
[362358181,1748214650087,-430.0,0.00019726,2]
[362358182,1748214650097,-430.0,0.00019726,2]
[362358183,1748214650107,-430.0,0.00019726,2]
[362358184,1748214650116,-430.0,0.00019726,2]
[362358185,1748214650126,-430.0,0.00019726,2]
[362358186,1748214650136,-249.94,0.00019726,2]
[362358187,1748214650145,-430.0,0.00019726,2]
[362358188,1748214650156,-293.10280736,0.00019728,2]
[362358189,1748214650166,-293.10280736,0.00019934,2]
[362358190,1748214650175,-185.96,0.0002,2]
[362358191,1748214650185,-314.12,0.0002,2]
[362358192,1748214650195,-430.0,0.0002,2]
[362358193,1748214650204,-158.01,0.0002,2]
[362358194,1748214650217,-273.94,0.0002,2]
[362358195,1748214650226,-210.05,0.0002,2]
[362358196,1748214650235,-476.99634377,0.0002,2]
[362358197,1748214650245,-430.0,0.0002,2]
[362358198,1748214650255,-430.0,0.0002,2]
[362358199,1748214650264,-430.0,0.0002,2]
[362358200,1748214650274,-430.0,0.0002,2]
[362358201,1748214650284,-430.0,0.0002,2]
[362358202,1748214650295,-430.0,0.0002,2]
[362358203,1748214650304,-561.4,0.0002,2]
[362358204,1748214650314,-430.0,0.0002,2]
[362358205,1748214650323,-430.0,0.0002,2]
[362358206,1748214650333,-430.0,0.0002,2]
[362358207,1748214650343,-715.58,0.0002,2]
[362358208,1748214650352,-490.18,0.0002,2]
[362358209,1748214650361,-161.52,0.0002,2]
[362358210,1748214650371,-430.0,0.0002,2]
[362358211,1748214650380,-430.0,0.0002,2]
[362358212,1748214650390,-430.0,0.0002,2]
[362358213,1748214650399,-430.0,0.0002,2]
[362358214,1748214650408,-430.0,0.0002,2]
[362358215,1748214650417,-430.0,0.0002,2]
[362358216,1748214650427,-563.77,0.0002,2]
[362358217,1748214650437,-430.0,0.0002,2]
[362358218,1748214650446,-430.0,0.0002,2]
[362358219,1748214650456,-430.0,0.0002,2]
[362358220,1748214650467,-236.58,0.0002,2]
[362358221,1748214650476,-431.71,0.0002,2]
[362358222,1748214650487,-4000.0,0.0002,4]
[362358223,1748214650498,-430.0,0.0002,2]
[362358224,1748214650508,-430.0,0.0002,2]
[362358225,1748214650519,-430.0,0.0002,2]
[362358226,1748214650529,-258.36,0.0002,2]
[362358227,1748214650540,-430.0,0.0002,2]
[362358228,1748214650550,-430.0,0.0002,2]
[362358229,1748214650563,-430.0,0.0002,2]
[362358230,1748214650575,-430.0,0.0002,2]
[362358231,1748214650585,-430.0,0.0002,2]
[362358232,1748214650597,-500.0,0.00020064,2]
[362358233,1748214650607,-293.10280736,0.00020141,2]
[362358234,1748214650620,-174.62516118,0.00020162,2]
[362358235,1748214650632,-284.435969,0.00020187,2]
[362358236,1748214650644,-500.78,0.00020273,2]
[362358237,1748214650655,-430.0,0.00020273,2]
[362358238,1748214650669,-430.0,0.00020273,2]
[362358239,1748214650680,-430.0,0.00020273,2]
[362358240,1748214650691,-430.0,0.00020273,2]
[362358241,1748214650703,-403.48,0.00020273,2]
[362358242,1748214650714,-395.84678536,0.00020273,2]
[362358243,1748214650725,-430.0,0.00020273,2]
[362358244,1748214650734,-430.0,0.00020273,2]
[362358245,1748214650744,-715.58,0.00020273,2]
[362358246,1748214650753,-169.5,0.00020273,2]
[362358247,1748214650763,-324.42,0.00020273,2]
[362358248,1748214650772,-430.0,0.00020273,2]
[362358249,1748214650781,-430.0,0.00020273,2]
[362358250,1748214650791,-430.0,0.00020273,2]
[362358251,1748214650800,-430.0,0.00020273,2]
[362358252,1748214650810,-563.77,0.00020273,2]
[362358253,1748214650820,-430.0,0.00020273,2]
[362358254,1748214650829,-430.0,0.00020273,2]
[362358255,1748214650839,-430.0,0.00020273,2]
[362358256,1748214650848,-431.71,0.00020273,2]
[362358257,1748214650858,-430.0,0.00020273,2]
[362358258,1748214650867,-199.62,0.00020273,2]
[362358259,1748214650876,-430.0,0.00020273,2]
[362358260,1748214650886,-430.0,0.00020273,2]
[362358261,1748214650896,-430.0,0.00020273,2]
[362358262,1748214650905,-430.0,0.00020273,2]
[362358263,1748214650915,-430.0,0.00020273,2]
[362358264,1748214650924,-249.63,0.00020273,2]
[362358265,1748214650933,-293.10280736,0.00020348,3]
[362358266,1748214650942,-436.51,0.00020351,2]
[362358267,1748214650951,-713.74,0.00020538,3]
[362358268,1748214650962,-356.86,0.00020538,3]
[362358269,1748214650973,-195.72,0.00020547,2]
[362358270,1748214650982,-430.0,0.00020547,2]
[362358271,1748214650993,-265.88,0.00020547,2]
[362358272,1748214651003,-164.10537562,0.00020547,2]
[362358273,1748214651013,-430.0,0.00020547,2]
[362358274,1748214651022,-430.0,0.00020547,2]
[362358275,1748214651032,-715.58,0.00020547,2]
[362358276,1748214651041,-430.0,0.00020547,2]
[362358277,1748214651051,-430.0,0.00020547,2]
[362358278,1748214651061,-430.0,0.00020547,2]
[362358279,1748214651070,-430.0,0.00020547,2]
[362358280,1748214651080,-563.77,0.00020547,2]
[362358281,1748214651090,-430.0,0.00020547,2]
[362358282,1748214651100,-430.0,0.00020547,2]
[362358283,1748214651109,-430.0,0.00020547,2]
[362358284,1748214651119,-431.71,0.00020547,2]
[362358285,1748214651129,-430.0,0.00020547,2]
[362358286,1748214651138,-430.0,0.00020547,2]
[362358287,1748214651148,-295.35,0.00020547,2]
[362358288,1748214651157,-430.0,0.00020547,2]
[362358289,1748214651167,-430.0,0.00020547,2]
[362358290,1748214651178,-430.0,0.00020547,2]
[362358291,1748214651188,-293.10280736,0.00020555,3]
[362358292,1748214651198,-293.10280736,0.00020762,3]
[362358293,1748214651207,-960.0,0.00020773,2]
[362358294,1748214651218,-315.07,0.00020821,2]
[362358295,1748214651229,-430.0,0.00020821,2]
[362358296,1748214651239,-715.58,0.00020821,2]
[362358297,1748214651248,-430.0,0.00020821,2]
[362358298,1748214651258,-236.9919854,0.00020821,2]
[362358299,1748214651365,-193.0080146,0.00020821,2]
[362358300,1748214651376,-489.02,0.00020821,2]
[362358301,1748214651386,-430.0,0.00020821,2]
[362358302,1748214651396,-563.77,0.00020821,2]
[362358303,1748214651406,-430.0,0.00020821,2]
[362358304,1748214651415,-430.0,0.00020821,2]
[362358305,1748214651424,-430.0,0.00020821,2]
[362358306,1748214651435,-431.71,0.00020821,2]
[362358307,1748214651445,-430.0,0.00020821,2]
[362358308,1748214651454,-404.28,0.00020821,2]
[362358309,1748214651464,-567.88,0.00020821,2]
[362358310,1748214651475,-430.0,0.00020821,2]
[362358311,1748214651487,-430.0,0.00020821,2]
[362358312,1748214651496,-2200.0,0.00020938,2]
[362358313,1748214651506,-293.10280736,0.00020969,4]
[362358314,1748214651515,-500.0,0.00021,7]
[362358315,1748214651526,-430.0,0.00021095,2]
[362358316,1748214651536,-715.58,0.00021095,2]
[362358317,1748214651546,-430.0,0.00021095,2]
[362358318,1748214651557,-430.0,0.00021095,2]
[362358319,1748214651567,-430.0,0.00021095,2]
[362358320,1748214651577,-563.77,0.00021095,2]
[362358321,1748214651587,-430.0,0.00021095,2]
[362358322,1748214651597,-430.0,0.00021095,2]
[362358323,1748214651607,-430.0,0.00021095,2]
[362358324,1748214651618,-431.71,0.00021095,2]
[362358325,1748214651630,-479.47,0.00021095,2]
[362358326,1748214651640,-430.0,0.00021095,2]
[362358327,1748214651650,-430.0,0.00021095,2]
[362358328,1748214651659,-168.011,0.0002115,2]
[362358329,1748214651669,-293.10280736,0.00021176,4]
[362358330,1748214651678,-174.62516118,0.00021347,2]
[362358331,1748214651688,-430.0,0.00021369,2]
[362358332,1748214651697,-715.58,0.00021369,2]
[362358333,1748214651707,-372.01,0.00021369,2]
[362358334,1748214651719,-430.0,0.00021369,2]
[362358335,1748214651728,-174.97208439,0.00021369,2]
[362358336,1748214651738,-563.77,0.00021369,2]
[362358337,1748214651747,-309.63,0.00021369,2]
[362358338,1748214651757,-267.44,0.00021369,2]
[362358339,1748214651767,-430.0,0.00021369,2]
[362358340,1748214651777,-431.71,0.00021369,2]
[362358341,1748214651786,-430.0,0.00021369,2]
[362358342,1748214651797,-430.0,0.00021369,2]
[362358343,1748214651807,-293.10280736,0.00021383,5]
[362358344,1748214651816,-500.0,0.0002155,2]
[362358345,1748214651827,-500.0,0.0002155,2]
[362358346,1748214651838,-500.0,0.0002155,2]
[362358347,1748214651848,-500.0,0.0002155,2]
[362358348,1748214651857,-500.0,0.00021578,2]
[362358349,1748214651867,-293.10280736,0.0002159,5]
[362358350,1748214651876,-509.26,0.00021623,2]
[362358351,1748214651886,-430.0,0.00021643,2]
[362358352,1748214651899,-715.58,0.00021643,2]
[362358353,1748214651909,-430.0,0.00021643,2]
[362358354,1748214651920,-563.77,0.00021643,2]
[362358355,1748214651931,-430.0,0.00021643,2]
[362358356,1748214651941,-431.71,0.00021643,2]
[362358357,1748214651952,-430.0,0.00021643,2]
[362358358,1748214651963,-430.0,0.00021643,2]
[362358359,1748214651971,-2000.0,0.000217,2]
[362358360,1748214651981,-2000.0,0.000217,2]
[362358361,1748214651992,-500.0,0.00021737,2]
[362358362,1748214652002,-500.0,0.00021737,2]
[362358363,1748214652012,-645.81764302,0.00021737,2]
[362358364,1748214652022,-500.0,0.00021763,2]
[362358365,1748214652033,-293.10280736,0.00021797,6]
[362358366,1748214652043,-500.0,0.00021886,2]
[362358367,1748214652055,-500.0,0.00021886,2]
[362358368,1748214652068,-500.0,0.00021886,2]
[362358369,1748214652078,-500.0,0.00021886,2]
[362358370,1748214652087,-500.0,0.00021886,2]
[362358371,1748214652097,-600.0,0.00021886,2]
[362358372,1748214652109,-2983.76,0.000219,2]
[362358373,1748214652118,-500.0,0.00021917,2]
[362358374,1748214652127,-216.48034346,0.00021917,2]
[362358375,1748214652139,-430.0,0.00021917,2]
[362358376,1748214652149,-715.58,0.00021917,2]
[362358377,1748214652159,-4252.52,0.00021917,2]
[362358378,1748214652170,-430.0,0.00021917,2]
[362358379,1748214652180,-563.77,0.00021917,2]
[362358380,1748214652189,-430.0,0.00021917,2]
[362358381,1748214652199,-431.71,0.00021917,2]
[362358382,1748214652208,-430.0,0.00021917,2]
[362358383,1748214652218,-430.0,0.00021917,2]
[362358384,1748214652228,-171.0,0.00022,2]
[362358385,1748214652237,-184.0,0.00022,2]
[362358386,1748214652248,-293.10280736,0.00022003,6]
[362358387,1748214652258,-1000.0,0.00022098,2]
[362358388,1748214652269,-695.67954702,0.00022098,2]
[362358389,1748214652279,-992.96291503,0.00022098,2]
[362358390,1748214652290,-1000.0,0.00022098,2]
[362358391,1748214652301,-2000.0,0.000221,2]
[362358392,1748214652312,-513.66233292,0.00022126,2]
[362358393,1748214652324,-363.8823352,0.00022137,2]
[362358394,1748214652336,-430.0,0.00022191,2]
[362358395,1748214652347,-715.58,0.00022191,2]
[362358396,1748214652358,-430.0,0.00022191,2]
[362358397,1748214652368,-563.77,0.00022191,2]
[362358398,1748214652380,-430.0,0.00022191,2]
[362358399,1748214652390,-431.71,0.00022191,2]
[362358400,1748214652402,-200.0,0.00022191,2]
[362358401,1748214652413,-200.0,0.00022191,2]
[362358402,1748214652424,-200.0,0.00022191,2]
[362358403,1748214652435,-200.0,0.00022191,2]
[362358404,1748214652445,-200.0,0.00022191,2]
[362358405,1748214652456,-200.0,0.00022191,2]
[362358406,1748214652467,-200.0,0.00022191,2]
[362358407,1748214652477,-200.0,0.00022191,2]
[362358408,1748214652488,-200.0,0.00022191,2]
[362358409,1748214652499,-200.0,0.00022191,2]
[362358410,1748214652512,-191.50249476,0.00022191,2]
[362358411,1748214652523,-430.0,0.00022191,2]
[362358412,1748214652535,-551.21,0.00022191,2]
[362358413,1748214652547,-184.0,0.00022192,7]
[362358414,1748214652558,-207.4,0.00022194,2]
[362358415,1748214652569,-293.10280736,0.0002221,6]
[362358416,1748214652581,-500.0,0.00022256,2]
[362358417,1748214652593,-355.0258361,0.00022274,2]
[362358418,1748214652603,-1000.0,0.00022285,2]
[362358419,1748214652615,-968.16621161,0.00022285,2]
[362358420,1748214652626,-1000.0,0.0002231,2]
[362358421,1748214652637,-293.10280736,0.00022417,7]
[362358422,1748214652647,-1000.0,0.00022434,2]
[362358423,1748214652657,-557.41873304,0.00022434,2]
[362358424,1748214652666,-1000.0,0.00022434,2]
[362358425,1748214652676,-1000.0,0.00022434,2]
[362358426,1748214652686,-1000.0,0.00022434,2]
[362358427,1748214652695,-1200.0,0.00022434,2]
[362358428,1748214652704,-251.79819787,0.00022465,2]
[362358429,1748214652718,-248.20180213,0.00022465,2]
[362358430,1748214652728,-430.0,0.00022465,2]